{"text_format":"3","workbook":"xlsx","n_sheets":2,"sheets":["TabelaG","ListaGmin"],"not_rendered":{"macros":1,"defined_names":4},"read":"whole","date_system":"1900"}

{"sheet":"TabelaG","index":0,"n_rows":38,"n_cols":27,"rows_kept":38,"merged":[[0,0,0,26],[2,1,2,4],[2,6,2,7],[2,22,2,24],[2,25,2,26],[4,0,4,14],[5,0,7,0],[5,1,7,1],[5,2,5,26],[6,2,6,4],[6,5,6,7],[6,8,6,10],[6,11,6,13],[6,14,6,16],[6,17,6,19],[6,20,6,22],[6,23,6,25],[7,2,7,4],[7,5,7,7],[7,8,7,10],[7,11,7,13],[7,14,7,16],[7,17,7,19],[7,20,7,22],[7,23,7,25],[7,26,19,26],[8,0,9,1],[10,0,11,0],[10,23,17,23],[10,24,17,24],[10,25,17,25],[12,0,13,0],[14,0,15,0],[16,0,17,0],[18,0,19,0],[18,2,19,2],[18,5,19,5],[18,8,19,8],[18,11,19,11],[18,14,19,14],[18,17,19,17],[18,20,19,20],[18,23,19,23],[18,24,19,24],[18,25,19,25],[21,0,21,22],[23,25,23,26],[28,1,28,8],[29,2,29,8],[30,2,30,8],[31,2,31,8],[32,2,32,8],[33,2,33,8],[34,2,34,8],[35,2,35,8],[36,2,36,8],[37,2,37,8]]}
["TABELA - Rządowy program pomocy uczniom niepełnosprawnym w formie dofinansowania zakupu podręczników, materiałów edukacyjnych i materiałów ćwiczeniowych w latach 2020-2021 – dane zweryfikowane\n                                                                                                                                                                                                                                                                                                                                                                                                                       "]
[]
["Gmina:",{"$nulls":4},"Powiat",{"$f":"IFERROR(VLOOKUP(J3,ListaGmin!A2:G163,4,FALSE),\"—\")","v":"—"},null,{"$f":"IFERROR(VLOOKUP(J3,ListaGmin!A2:H163,3,FALSE),\"—\")","v":"—"},{"$f":"IFERROR(VLOOKUP(B3,ListaGmin!B2:H163,7,FALSE),\"—\")","v":"—"},{"$nulls":12},"Wnioskowana kwota dotacji",null,null,{"$f":"SUM(E19+H19+K19+N19+Q19+T19+W19)+SUM(E20+H20+K20+N20+Q20+T20+W20)+Z19","v":0}]
[{"$nulls":8},"Teryt","Kod"]
[]
["Nazwa typu jednostek","rodzaj szkoły ","Liczba posiadających orzeczenie o potrzebie kształcenia specjalnego, o którym mowa w art. 127 ust. 10 ustawy z dnia 14 grudnia 2016 r. – Prawo oświatowe (Dz.U. z 2020 r. poz. 910) albo orzeczenie o potrzebie kształcenia specjalnego, o którym mowa w art. 312 ust. 1 ustawy z dnia 14 grudnia 2016 r. – Przepisy wprowadzające ustawę – Prawo oświatowe (Dz. U. z 2017 r. poz. 60, 949 i 2203, z 2018 r. poz. 2245 oraz z 2019 r. poz. 1287), uczęszczającym roku szkolnym 2020/2021 do: branżowej szkoły I stopnia, klasy I branżowej szkoły II stopnia, klas I i II czteroletniego liceum ogólnokształcącego, klas II i III dotychczasowego trzyletniego liceum ogólnokształcącego prowadzonych w czteroletnim liceum ogólnokształcącym, klas I i II pięcioletniego technikum, klas II–IV dotychczasowego czteroletniego technikum prowadzonych w pięcioletnim technikum, klas III–VI ogólnokształcącej szkoły muzycznej II stopnia, klas VI–IX ogólnokształcącej szkoły baletowej, klas I i II liceum sztuk plastycznych, klas V i VI ogólnokształcącej szkoły sztuk pięknych, klas II-IV dotychczasowego liceum plastycznego prowadzonych w liceum sztuk plastycznych lub klas V i VI dotychczasowej ogólnokształcącej szkoły sztuk pięknych prowadzonych w liceum sztuk plastycznych."]
[null,null,"słabowidzący",null,null,"słabosłyszący",null,null,"z autyzmem, \nw tym z zespołem Aspergera",null,null,"z niepełnosprawnością ruchową, \nw tym z afazją",null,null,"niesłyszący",null,null,"z niepełnosprawnością intelektualną w stopniu lekkim",null,null,"z niepełnosprawnością intelektualną w stopniu umiarkowanym lub znacznym",null,null,"szkoła specjalna \nprzysposabiająca\ndo pracy",null,null,"Liczba dzieci \nogółem"]
[null,null,"zakup podręczników i/lub materiałów edukacyjnych",null,null,"zakup podręczników i/lub materiałów edukacyjnych",null,null,"zakup podręczników i/lub materiałów edukacyjnych",null,null,"zakup podręczników i/lub materiałów edukacyjnych",null,null,"zakup podręczników i/lub materiałów edukacyjnych",null,null,"zakup podręczników i/lub materiałów edukacyjnych",null,null,"zakup podręczników i/lub materiałów edukacyjnych",null,null,"zakup podręczników i/lub materiałów edukacyjnych",null,null,{"$f":"SUM(D19+G19+J19+M19+P19+S19+V19)+SUM(D20+G20+J20+M20+P20+S20+V20)+Y19","v":0}]
[null,null,"1","2","3","4","5","6","7","8","9","10","11","12","13","14","15","16","17","18","22","23","24","25","26","27"]
[null,null,"cena podręczników","liczba uczniów","wysokość dotacji","cena podręczników","liczba uczniów","wysokość dotacji","cena podręczników","liczba uczniów","wysokość dotacji","cena podręczników","liczba uczniów","wysokość dotacji","cena podręczników","liczba uczniów","wysokość dotacji","cena podręczników","liczba uczniów","wysokość dotacji","cena podręczników","liczba uczniów","wysokość dotacji","cena podręczników","liczba uczniów","wysokość dotacji"]
["branżowa szkoła I stopnia","ogólnodostępna",390,null,{"$f":"C11*D11","v":{"v":0,"d":"0.00"}},390,null,{"$f":"F11*G11","v":{"v":0,"d":"0.00"}},390,null,{"$f":"I11*J11","v":{"v":0,"d":"0.00"}},390,null,{"$f":"L11*M11","v":{"v":0,"d":"0.00"}},390,null,{"$f":"O11*P11","v":{"v":0,"d":"0.00"}},390,null,{"$f":"R11*S11","v":{"v":0,"d":"0.00"}},225,null,{"$f":"U11*V11","v":{"v":0,"d":"0.00"}},225,null,{"$f":"X11*Y11","v":{"v":0,"d":"0.00"}}]
[null,"specjalna",390,null,{"v":0,"d":"0.00"},390,null,{"v":0,"d":"0.00"},390,null,{"v":0,"d":"0.00"},390,null,{"v":0,"d":"0.00"},390,null,{"v":0,"d":"0.00"},390,null,{"v":0,"d":"0.00"},225,null,{"v":0,"d":"0.00"}]
["klasa I branżowej szkoły II stopnia","ogólnodostępna",390,null,{"v":0,"d":"0.00"},390,null,{"v":0,"d":"0.00"},390,null,{"v":0,"d":"0.00"},390,null,{"v":0,"d":"0.00"},390,null,{"v":0,"d":"0.00"},390,null,{"v":0,"d":"0.00"},225,null,{"v":0,"d":"0.00"}]
[null,"specjalna",390,null,{"v":0,"d":"0.00"},390,null,{"v":0,"d":"0.00"},390,null,{"v":0,"d":"0.00"},390,null,{"v":0,"d":"0.00"},390,null,{"v":0,"d":"0.00"},390,null,{"v":0,"d":"0.00"},225,null,{"v":0,"d":"0.00"}]
["liceum ogólnokształcące*","ogólnodostępna",445,null,{"v":0,"d":"0.00"},445,null,{"v":0,"d":"0.00"},445,null,{"v":0,"d":"0.00"},445,null,{"v":0,"d":"0.00"},445,null,{"v":0,"d":"0.00"},445,null,{"v":0,"d":"0.00"},225,null,{"v":0,"d":"0.00"}]
[null,"specjalna",445,null,{"v":0,"d":"0.00"},445,null,{"v":0,"d":"0.00"},445,null,{"v":0,"d":"0.00"},445,null,{"v":0,"d":"0.00"},445,null,{"v":0,"d":"0.00"},445,null,{"v":0,"d":"0.00"},225,null,{"v":0,"d":"0.00"}]
["technikum*","ogólnodostępna",445,null,{"v":0,"d":"0.00"},445,null,{"v":0,"d":"0.00"},445,null,{"v":0,"d":"0.00"},445,null,{"v":0,"d":"0.00"},445,null,{"v":0,"d":"0.00"},445,null,{"v":0,"d":"0.00"},225,null,{"v":0,"d":"0.00"}]
[null,"specjalna",445,null,{"v":0,"d":"0.00"},445,null,{"v":0,"d":"0.00"},445,null,{"v":0,"d":"0.00"},445,null,{"v":0,"d":"0.00"},445,null,{"v":0,"d":"0.00"},445,null,{"v":0,"d":"0.00"},225,null,{"v":0,"d":"0.00"}]
["ogółem","ogólnodostępna","X",{"$f":"D11+D13+D15+D17","v":0},{"$f":"E11+E13+E15+E17","v":{"v":0,"d":"0.00"}},"X",{"$f":"G11+G13+G15+G17","v":0},{"$f":"H11+H13+H15+H17","v":{"v":0,"d":"0.00"}},"X",{"$f":"J11+J13+J15+J17","v":0},{"$f":"K11+K13+K15+K17","v":{"v":0,"d":"0.00"}},"X",{"$f":"M11+M13+M15+M17","v":0},{"$f":"N11+N13+N15+N17","v":{"v":0,"d":"0.00"}},"X",{"$f":"P11+P13+P15+P17","v":0},{"$f":"Q11+Q13+Q15+Q17","v":{"v":0,"d":"0.00"}},"X",{"$f":"S11+S13+S15+S17","v":0},{"$f":"T11+T13+T15+T17","v":{"v":0,"d":"0.00"}},"X",{"$f":"V11+V13+V15+V17","v":0},{"$f":"W11+W13+W15+W17","v":{"v":0,"d":"0.00"}},"X",{"$f":"Y11","v":0},{"$f":"Z11","v":{"v":0,"d":"0.00"}}]
[null,"specjalna",null,{"$f":"D12+D14+D16+D18","v":0},{"$f":"E12+E14+E16+E18","v":{"v":0,"d":"0.00"}},null,{"$f":"G12+G14+G16+G18","v":0},{"$f":"H12+H14+H16+H18","v":{"v":0,"d":"0.00"}},null,{"$f":"J12+J14+J16+J18","v":0},{"$f":"K12+K14+K16+K18","v":{"v":0,"d":"0.00"}},null,{"$f":"M12+M14+M16+M18","v":0},{"$f":"N12+N14+N16+N18","v":{"v":0,"d":"0.00"}},null,{"$f":"P12+P14+P16+P18","v":0},{"$f":"Q12+Q14+Q16+Q18","v":{"v":0,"d":"0.00"}},null,{"$f":"S12+S14+S16+S18","v":0},{"$f":"T12+T14+T16+T18","v":{"v":0,"d":"0.00"}},null,{"$f":"V12+V14+V16+V18","v":0},{"$f":"W12+W14+W16+W18","v":{"v":0,"d":"0.00"}}]
[]
["* oraz odpowiednich klas szkół artystycznych  prowadzonych przez ministra właściwego do spraw kultury i ochrony dziedzictwa narodowego, szkół prowadzonych przez Ministra Rolnictwa i Rozwoju Wsi oraz szkół prowadzonych przez Ministra Środowiska"]
[]
[]
[]
[]
[]
[]
[null,"DANE KONTAKTOWE"]
[]
[null,"sporządził(a):"]
[]
[null,"telefon:"]
[]
[null,"email:"]
[]
[null,"podpis:"]
[null,null,"………………………………………………………………………………………………………………………………….………"]

{"sheet":"ListaGmin","index":1,"n_rows":145,"n_cols":8,"rows_kept":145,"hidden":true}
["4","gmina_wszystko","idTerytGmina","powiat","gmina","idRodzajGminy","rodzaj_gminy","kod2"]
[77,"Gmina miejska Aleksandrów Kujawski","0401011","aleksandrowski","Aleksandrów Kujawski","1","gmina miejska",77]
[92,"Gmina wiejska Aleksandrów Kujawski","0401042","aleksandrowski","Aleksandrów Kujawski","2","gmina wiejska",92]
[25,"Gmina miejsko-wiejska Barcin","0419013","żniński","Barcin","3","gmina miejsko-wiejska",25]
[140,"Gmina wiejska Bartniczka","0402062","brodnicki","Bartniczka","2","gmina wiejska",140]
[93,"Gmina wiejska Baruchowo","0418022","włocławski","Baruchowo","2","gmina wiejska",93]
[94,"Gmina wiejska Bądkowo","0401052","aleksandrowski","Bądkowo","2","gmina wiejska",94]
[47,"Gmina wiejska Białe Błota","0403012","bydgoski","Białe Błota","2","gmina wiejska",47]
[95,"Gmina wiejska Bobrowniki","0408022","lipnowski","Bobrowniki","2","gmina wiejska",95]
[132,"Gmina wiejska Bobrowo","0402022","brodnicki","Bobrowo","2","gmina wiejska",132]
[96,"Gmina wiejska Boniewo","0418032","włocławski","Boniewo","2","gmina wiejska",96]
[122,"Gmina miejska Brodnica","0402011","brodnicki","Brodnica","1","gmina miejska",122]
[133,"Gmina wiejska Brodnica","0402032","brodnicki","Brodnica","2","gmina wiejska",133]
[84,"Gmina miejsko-wiejska Brześć Kujawski","0418043","włocławski","Brześć Kujawski","3","gmina miejsko-wiejska",84]
[134,"Gmina wiejska Brzozie","0402042","brodnicki","Brzozie","2","gmina wiejska",134]
[97,"Gmina wiejska Brzuze","0412022","rypiński","Brzuze","2","gmina wiejska",97]
[48,"Gmina wiejska Bukowiec","0414012","świecki","Bukowiec","2","gmina wiejska",48]
[1,"M. Bydgoszcz","0461011","Bydgoszcz","Bydgoszcz","1","gmina miejska",1]
[98,"Gmina wiejska Bytoń","0411022","radziejowski","Bytoń","2","gmina wiejska",98]
[49,"Gmina wiejska Cekcyn","0416012","tucholski","Cekcyn","2","gmina wiejska",49]
[123,"Gmina miejska Chełmno","0404011","chełmiński","Chełmno","1","gmina miejska",123]
[135,"Gmina wiejska Chełmno","0404022","chełmiński","Chełmno","2","gmina wiejska",135]
[124,"Gmina miejska Chełmża","0415011","toruński","Chełmża","1","gmina miejska",124]
[136,"Gmina wiejska Chełmża","0415022","toruński","Chełmża","2","gmina wiejska",136]
[99,"Gmina wiejska Choceń","0418052","włocławski","Choceń","2","gmina wiejska",99]
[85,"Gmina miejsko-wiejska Chodecz","0418063","włocławski","Chodecz","3","gmina miejsko-wiejska",85]
[100,"Gmina wiejska Chrostkowo","0408032","lipnowski","Chrostkowo","2","gmina wiejska",100]
[137,"Gmina wiejska Ciechocin","0405022","golubsko-dobrzyński","Ciechocin","2","gmina wiejska",137]
[78,"Gmina miejska Ciechocinek","0401021","aleksandrowski","Ciechocinek","1","gmina miejska",78]
[101,"Gmina wiejska Czernikowo","0415032","toruński","Czernikowo","2","gmina wiejska",101]
[50,"Gmina wiejska Dąbrowa","0409012","mogileński","Dąbrowa","2","gmina wiejska",50]
[51,"Gmina wiejska Dąbrowa Biskupia","0407022","inowrocławski","Dąbrowa Biskupia","2","gmina wiejska",51]
[52,"Gmina wiejska Dąbrowa Chełmińska","0403022","bydgoski","Dąbrowa Chełmińska","2","gmina wiejska",52]
[138,"Gmina wiejska Dębowa Łąka","0417022","wąbrzeski","Dębowa Łąka","2","gmina wiejska",138]
[53,"Gmina wiejska Dobrcz","0403032","bydgoski","Dobrcz","2","gmina wiejska",53]
[102,"Gmina wiejska Dobre","0411032","radziejowski","Dobre","2","gmina wiejska",102]
[86,"Gmina miejsko-wiejska Dobrzyń nad Wisłą","0408043","lipnowski","Dobrzyń nad Wisłą","3","gmina miejsko-wiejska",86]
[54,"Gmina wiejska Dragacz","0414022","świecki","Dragacz","2","gmina wiejska",54]
[55,"Gmina wiejska Drzycim","0414032","świecki","Drzycim","2","gmina wiejska",55]
[103,"Gmina wiejska Fabianki","0418072","włocławski","Fabianki","2","gmina wiejska",103]
[56,"Gmina wiejska Gąsawa","0419022","żniński","Gąsawa","2","gmina wiejska",56]
[26,"Gmina miejsko-wiejska Gniewkowo","0407033","inowrocławski","Gniewkowo","3","gmina miejsko-wiejska",26]
[125,"Gmina miejska Golub-Dobrzyń","0405011","golubsko-dobrzyński","Golub-Dobrzyń","1","gmina miejska",125]
[139,"Gmina wiejska Golub-Dobrzyń","0405032","golubsko-dobrzyński","Golub-Dobrzyń","2","gmina wiejska",139]
[57,"Gmina wiejska Gostycyn","0416022","tucholski","Gostycyn","2","gmina wiejska",57]
[127,"Gmina miejsko-wiejska Górzno","0402053","brodnicki","Górzno","3","gmina miejsko-wiejska",127]
[2,"M. Grudziądz","0462011","Grudziądz","Grudziądz","1","gmina miejska",2]
[141,"Gmina wiejska Grudziądz","0406012","grudziądzki","Grudziądz","2","gmina wiejska",141]
[142,"Gmina wiejska Gruta","0406022","grudziądzki","Gruta","2","gmina wiejska",142]
[24,"Gmina miejska Inowrocław","0407011","inowrocławski","Inowrocław","1","gmina miejska",24]
[58,"Gmina wiejska Inowrocław","0407042","inowrocławski","Inowrocław","2","gmina wiejska",58]
[87,"Gmina miejsko-wiejska Izbica Kujawska","0418083","włocławski","Izbica Kujawska","3","gmina miejsko-wiejska",87]
[128,"Gmina miejsko-wiejska Jabłonowo Pomorskie","0402073","brodnicki","Jabłonowo Pomorskie","3","gmina miejsko-wiejska",128]
[27,"Gmina miejsko-wiejska Janikowo","0407053","inowrocławski","Janikowo","3","gmina miejsko-wiejska",27]
[28,"Gmina miejsko-wiejska Janowiec Wielkopolski","0419033","żniński","Janowiec Wielkopolski","3","gmina miejsko-wiejska",28]
[59,"Gmina wiejska Jeziora Wielkie","0409022","mogileński","Jeziora Wielkie","2","gmina wiejska",59]
[60,"Gmina wiejska Jeżewo","0414042","świecki","Jeżewo","2","gmina wiejska",60]
[29,"Gmina miejsko-wiejska Kamień Krajeński","0413013","sępoleński","Kamień Krajeński","3","gmina miejsko-wiejska",29]
[30,"Gmina miejsko-wiejska Kcynia","0410013","nakielski","Kcynia","3","gmina miejsko-wiejska",30]
[61,"Gmina wiejska Kęsowo","0416032","tucholski","Kęsowo","2","gmina wiejska",61]
[143,"Gmina wiejska Kijewo Królewskie","0404032","chełmiński","Kijewo Królewskie","2","gmina wiejska",143]
[104,"Gmina wiejska Kikół","0408052","lipnowski","Kikół","2","gmina wiejska",104]
[105,"Gmina wiejska Koneck","0401062","aleksandrowski","Koneck","2","gmina wiejska",105]
[31,"Gmina miejsko-wiejska Koronowo","0403043","bydgoski","Koronowo","3","gmina miejsko-wiejska",31]
[79,"Gmina miejska Kowal","0418011","włocławski","Kowal","1","gmina miejska",79]
[106,"Gmina wiejska Kowal","0418092","włocławski","Kowal","2","gmina wiejska",106]
[129,"Gmina miejsko-wiejska Kowalewo Pomorskie","0405043","golubsko-dobrzyński","Kowalewo Pomorskie","3","gmina miejsko-wiejska",129]
[32,"Gmina miejsko-wiejska Kruszwica","0407063","inowrocławski","Kruszwica","3","gmina miejsko-wiejska",32]
[144,"Gmina wiejska Książki","0417032","wąbrzeski","Książki","2","gmina wiejska",144]
[80,"Gmina miejska Lipno","0408011","lipnowski","Lipno","1","gmina miejska",80]
[107,"Gmina wiejska Lipno","0408062","lipnowski","Lipno","2","gmina wiejska",107]
[145,"Gmina wiejska Lisewo","0404042","chełmiński","Lisewo","2","gmina wiejska",145]
[62,"Gmina wiejska Lniano","0414052","świecki","Lniano","2","gmina wiejska",62]
[108,"Gmina wiejska Lubanie","0418102","włocławski","Lubanie","2","gmina wiejska",108]
[146,"Gmina wiejska Lubicz","0415042","toruński","Lubicz","2","gmina wiejska",146]
[88,"Gmina miejsko-wiejska Lubień Kujawski","0418113","włocławski","Lubień Kujawski","3","gmina miejsko-wiejska",88]
[63,"Gmina wiejska Lubiewo","0416042","tucholski","Lubiewo","2","gmina wiejska",63]
[89,"Gmina miejsko-wiejska Lubraniec","0418123","włocławski","Lubraniec","3","gmina miejsko-wiejska",89]
[33,"Gmina miejsko-wiejska Łabiszyn","0419043","żniński","Łabiszyn","3","gmina miejsko-wiejska",33]
[130,"Gmina miejsko-wiejska Łasin","0406033","grudziądzki","Łasin","3","gmina miejsko-wiejska",130]
[147,"Gmina wiejska Łubianka","0415052","toruński","Łubianka","2","gmina wiejska",147]
[148,"Gmina wiejska Łysomice","0415062","toruński","Łysomice","2","gmina wiejska",148]
[34,"Gmina miejsko-wiejska Mogilno","0409033","mogileński","Mogilno","3","gmina miejsko-wiejska",34]
[35,"Gmina miejsko-wiejska Mrocza","0410023","nakielski","Mrocza","3","gmina miejsko-wiejska",35]
[36,"Gmina miejsko-wiejska Nakło nad Notecią","0410033","nakielski","Nakło nad Notecią","3","gmina miejsko-wiejska",36]
[81,"Gmina miejska Nieszawa","0401031","aleksandrowski","Nieszawa","1","gmina miejska",81]
[64,"Gmina wiejska Nowa Wieś Wielka","0403052","bydgoski","Nowa Wieś Wielka","2","gmina wiejska",64]
[37,"Gmina miejsko-wiejska Nowe","0414063","świecki","Nowe","3","gmina miejsko-wiejska",37]
[149,"Gmina wiejska Obrowo","0415072","toruński","Obrowo","2","gmina wiejska",149]
[65,"Gmina wiejska Osie","0414072","świecki","Osie","2","gmina wiejska",65]
[150,"Gmina wiejska Osiek","0402082","brodnicki","Osiek","2","gmina wiejska",150]
[66,"Gmina wiejska Osielsko","0403062","bydgoski","Osielsko","2","gmina wiejska",66]
[109,"Gmina wiejska Osięciny","0411042","radziejowski","Osięciny","2","gmina wiejska",109]
[38,"Gmina miejsko-wiejska Pakość","0407073","inowrocławski","Pakość","3","gmina miejsko-wiejska",38]
[151,"Gmina wiejska Papowo Biskupie","0404052","chełmiński","Papowo Biskupie","2","gmina wiejska",151]
[90,"Gmina miejsko-wiejska Piotrków Kujawski","0411053","radziejowski","Piotrków Kujawski","3","gmina miejsko-wiejska",90]
[152,"Gmina wiejska Płużnica","0417042","wąbrzeski","Płużnica","2","gmina wiejska",152]
[67,"Gmina wiejska Pruszcz","0414082","świecki","Pruszcz","2","gmina wiejska",67]
[110,"Gmina wiejska Raciążek","0401072","aleksandrowski","Raciążek","2","gmina wiejska",110]
[153,"Gmina wiejska Radomin","0405052","golubsko-dobrzyński","Radomin","2","gmina wiejska",153]
[82,"Gmina miejska Radziejów","0411011","radziejowski","Radziejów","1","gmina miejska",82]
[111,"Gmina wiejska Radziejów","0411062","radziejowski","Radziejów","2","gmina wiejska",111]
[131,"Gmina miejsko-wiejska Radzyń Chełmiński","0406043","grudziądzki","Radzyń Chełmiński","3","gmina miejsko-wiejska",131]
[68,"Gmina wiejska Rogowo (żniński)","0419052","żniński","Rogowo","2","gmina wiejska",68]
[112,"Gmina wiejska Rogowo (rypiński)","0412032","rypiński","Rogowo","2","gmina wiejska",112]
[154,"Gmina wiejska Rogóźno","0406052","grudziądzki","Rogóźno","2","gmina wiejska",154]
[69,"Gmina wiejska Rojewo","0407082","inowrocławski","Rojewo","2","gmina wiejska",69]
[159,"Gmina wiejska Ryńsk","0417052","wąbrzeski","Ryńsk","2","gmina wiejska",159]
[83,"Gmina miejska Rypin","0412011","rypiński","Rypin","1","gmina miejska",83]
[113,"Gmina wiejska Rypin","0412042","rypiński","Rypin","2","gmina wiejska",113]
[70,"Gmina wiejska Sadki","0410042","nakielski","Sadki","2","gmina wiejska",70]
[39,"Gmina miejsko-wiejska Sępólno Krajeńskie","0413023","sępoleński","Sępólno Krajeńskie","3","gmina miejsko-wiejska",39]
[71,"Gmina wiejska Sicienko","0403072","bydgoski","Sicienko","2","gmina wiejska",71]
[91,"Gmina miejsko-wiejska Skępe","0408073","lipnowski","Skępe","3","gmina miejsko-wiejska",91]
[114,"Gmina wiejska Skrwilno","0412052","rypiński","Skrwilno","2","gmina wiejska",114]
[40,"Gmina miejsko-wiejska Solec Kujawski","0403083","bydgoski","Solec Kujawski","3","gmina miejsko-wiejska",40]
[72,"Gmina wiejska Sośno","0413032","sępoleński","Sośno","2","gmina wiejska",72]
[155,"Gmina wiejska Stolno","0404062","chełmiński","Stolno","2","gmina wiejska",155]
[41,"Gmina miejsko-wiejska Strzelno","0409043","mogileński","Strzelno","3","gmina miejsko-wiejska",41]
[42,"Gmina miejsko-wiejska Szubin","0410053","nakielski","Szubin","3","gmina miejsko-wiejska",42]
[73,"Gmina wiejska Śliwice","0416052","tucholski","Śliwice","2","gmina wiejska",73]
[43,"Gmina miejsko-wiejska Świecie","0414093","świecki","Świecie","3","gmina miejsko-wiejska",43]
[156,"Gmina wiejska Świecie nad Osą","0406062","grudziądzki","Świecie nad Osą","2","gmina wiejska",156]
[157,"Gmina wiejska Świedziebnia","0402092","brodnicki","Świedziebnia","2","gmina wiejska",157]
[74,"Gmina wiejska Świekatowo","0414102","świecki","Świekatowo","2","gmina wiejska",74]
[115,"Gmina wiejska Tłuchowo","0408082","lipnowski","Tłuchowo","2","gmina wiejska",115]
[116,"Gmina wiejska Topólka","0411072","radziejowski","Topólka","2","gmina wiejska",116]
[3,"M. Toruń","0463011","Toruń","Toruń","1","gmina miejska",3]
[44,"Gmina miejsko-wiejska Tuchola","0416063","tucholski","Tuchola","3","gmina miejsko-wiejska",44]
[158,"Gmina wiejska Unisław","0404072","chełmiński","Unisław","2","gmina wiejska",158]
[117,"Gmina wiejska Waganiec","0401082","aleksandrowski","Waganiec","2","gmina wiejska",117]
[75,"Gmina wiejska Warlubie","0414112","świecki","Warlubie","2","gmina wiejska",75]
[126,"Gmina miejska Wąbrzeźno","0417011","wąbrzeski","Wąbrzeźno","1","gmina miejska",126]
[160,"Gmina wiejska Wąpielsk","0412062","rypiński","Wąpielsk","2","gmina wiejska",160]
[118,"Gmina wiejska Wielgie","0408092","lipnowski","Wielgie","2","gmina wiejska",118]
[161,"Gmina wiejska Wielka Nieszawka","0415082","toruński","Wielka Nieszawka","2","gmina wiejska",161]
[45,"Gmina miejsko-wiejska Więcbork","0413043","sępoleński","Więcbork","3","gmina miejsko-wiejska",45]
[4,"M. Włocławek","0464011","Włocławek","Włocławek","1","gmina miejska",4]
[119,"Gmina wiejska Włocławek","0418132","włocławski","Włocławek","2","gmina wiejska",119]
[120,"Gmina wiejska Zakrzewo","0401092","aleksandrowski","Zakrzewo","2","gmina wiejska",120]
[162,"Gmina wiejska Zbiczno","0402102","brodnicki","Zbiczno","2","gmina wiejska",162]
[121,"Gmina wiejska Zbójno","0405062","golubsko-dobrzyński","Zbójno","2","gmina wiejska",121]
[163,"Gmina wiejska Zławieś Wielka","0415092","toruński","Zławieś Wielka","2","gmina wiejska",163]
[76,"Gmina wiejska Złotniki Kujawskie","0407092","inowrocławski","Złotniki Kujawskie","2","gmina wiejska",76]
[46,"Gmina miejsko-wiejska Żnin","0419063","żniński","Żnin","3","gmina miejsko-wiejska",46]